[Event "Late-Titled-Tuesday-Blitz-July-09-2024"]
[Site "Chess.com"]
[Date "2024.07.09"]
[Round "8"]
[White "chessuriel"]
[Black "RodriQA"]
[Result "1/2-1/2"]
[WhiteElo "2350"]
[BlackElo "2442"]
[TimeControl "180+1"]
[EndTime "15:28:01 PDT"]
[Termination "Game drawn by repetition"]

1. e4 {[%clk 0:02:59.1]} 1... c6 {[%clk 0:02:58.2]} 2. d4 {[%clk 0:02:55.8]}
2... d5 {[%clk 0:02:59.1]} 3. Nc3 {[%clk 0:02:55.5]} 3... dxe4 {[%clk
0:02:56.6]} 4. Nxe4 {[%clk 0:02:56.4]} 4... Nf6 {[%clk 0:02:55.4]} 5. Nxf6+
{[%clk 0:02:56.4]} 5... exf6 {[%clk 0:02:56.3]} 6. Bc4 {[%clk 0:02:56.8]} 6...
Bd6 {[%clk 0:02:55.7]} 7. Qe2+ {[%clk 0:02:57.1]} 7... Be7 {[%clk 0:02:55.4]} 8.
Be3 {[%clk 0:02:55.9]} 8... O-O {[%clk 0:02:55.8]} 9. O-O-O {[%clk 0:02:56]}
9... Re8 {[%clk 0:02:47.6]} 10. Qh5 {[%clk 0:02:55.7]} 10... g6 {[%clk
0:02:47.2]} 11. Qf3 {[%clk 0:02:52.4]} 11... Qa5 {[%clk 0:01:58.5]} 12. g4
{[%clk 0:02:42.7]} 12... b5 {[%clk 0:01:56.1]} 13. Bb3 {[%clk 0:02:42.1]} 13...
Qc7 {[%clk 0:01:50.3]} 14. h4 {[%clk 0:02:40.4]} 14... Bb7 {[%clk 0:01:45.7]}
15. h5 {[%clk 0:02:36.7]} 15... c5 {[%clk 0:01:33.1]} 16. Bd5 {[%clk 0:02:35.4]}
16... Bxd5 {[%clk 0:01:33]} 17. Qxd5 {[%clk 0:02:36.2]} 17... Na6 {[%clk
0:01:22.5]} 18. hxg6 {[%clk 0:02:30.8]} 18... hxg6 {[%clk 0:01:23.4]} 19. Nf3
{[%clk 0:02:19.1]} 19... Bd6 {[%clk 0:00:55.6]} 20. dxc5 {[%clk 0:01:52.6]}
20... Bxc5 {[%clk 0:00:43.7]} 21. Bxc5 {[%clk 0:01:30]} 21... Nxc5 {[%clk
0:00:44.6]} 22. Qd4 {[%clk 0:01:23.1]} 22... Ne4 {[%clk 0:00:28.6]} 23. g5
{[%clk 0:01:13.9]} 23... Qf4+ {[%clk 0:00:20.9]} 24. Qe3 {[%clk 0:01:12.2]}
24... Qxe3+ {[%clk 0:00:19.2]} 25. fxe3 {[%clk 0:01:13.1]} 25... Nxg5 {[%clk
0:00:18.5]} 26. Nxg5 {[%clk 0:01:12.1]} 26... fxg5 {[%clk 0:00:19.4]} 27. Rd5
{[%clk 0:01:12.3]} 27... Rxe3 {[%clk 0:00:19.2]} 28. Rxg5 {[%clk 0:01:07.4]}
28... b4 {[%clk 0:00:19.7]} 29. Ra5 {[%clk 0:01:01.8]} 29... Kg7 {[%clk
0:00:16.3]} 30. Rh4 {[%clk 0:00:59.6]} 30... Rd8 {[%clk 0:00:13]} 31. b3 {[%clk
0:00:56.8]} 31... Re1+ {[%clk 0:00:12.4]} 32. Kb2 {[%clk 0:00:56.6]} 32... Rdd1
{[%clk 0:00:11.8]} 33. Rxb4 {[%clk 0:00:53.8]} 33... Rb1+ {[%clk 0:00:12.3]} 34.
Ka3 {[%clk 0:00:53.2]} 34... Re7 {[%clk 0:00:10.8]} 35. c4 {[%clk 0:00:49.2]}
35... f6 {[%clk 0:00:05.7]} 36. c5 {[%clk 0:00:48.8]} 36... Rc1 {[%clk
0:00:03.1]} 37. Rc4 {[%clk 0:00:42.7]} 37... Rxc4 {[%clk 0:00:02.1]} 38. bxc4
{[%clk 0:00:43.6]} 38... g5 {[%clk 0:00:01.8]} 39. c6 {[%clk 0:00:37.3]} 39...
g4 {[%clk 0:00:02]} 40. Rb5 {[%clk 0:00:34.4]} 40... Kg6 {[%clk 0:00:01.3]} 41.
Rb7 {[%clk 0:00:32.5]} 41... Re6 {[%clk 0:00:01.9]} 42. c7 {[%clk 0:00:32]}
42... Rc6 {[%clk 0:00:01.4]} 43. Kb4 {[%clk 0:00:32.5]} 43... g3 {[%clk
0:00:01.2]} 44. Kb5 {[%clk 0:00:32.3]} 44... Rxc7 {[%clk 0:00:01.3]} 45. Rxc7
{[%clk 0:00:30.5]} 45... g2 {[%clk 0:00:01.9]} 46. Rc8 {[%clk 0:00:28.3]} 46...
Kg7 {[%clk 0:00:02.3]} 47. Rc7+ {[%clk 0:00:28.5]} 47... Kg6 {[%clk 0:00:02.3]}
48. Rc8 {[%clk 0:00:28.3]} 48... Kf7 {[%clk 0:00:01.9]} 49. Rc7+ {[%clk
0:00:26.8]} 49... Kg6 {[%clk 0:00:02.1]} 1/2-1/2

[Event "Late-Titled-Tuesday-Blitz-July-09-2024"]
[Site "Chess.com"]
[Date "2024.07.09"]
[Round "8"]
[White "ManMish2"]
[Black "temus_galaktionov"]
[Result "0-1"]
[WhiteElo "2610"]
[BlackElo "2840"]
[TimeControl "180+1"]
[EndTime "15:28:06 PDT"]
[Termination "temus_galaktionov won on time"]

1. e4 {[%clk 0:03:00.9]} 1... c6 {[%clk 0:03:00.2]} 2. d4 {[%clk 0:03:00]} 2...
g6 {[%clk 0:03:01.1]} 3. Nc3 {[%clk 0:02:57.1]} 3... Bg7 {[%clk 0:03:01]} 4. Nf3
{[%clk 0:02:56.8]} 4... d6 {[%clk 0:03:01.2]} 5. Bd3 {[%clk 0:02:54.8]} 5... Nd7
{[%clk 0:03:00.7]} 6. O-O {[%clk 0:02:53.8]} 6... e5 {[%clk 0:03:00.8]} 7. Be3
{[%clk 0:02:52.9]} 7... Ngf6 {[%clk 0:03:00.8]} 8. h3 {[%clk 0:02:52.3]} 8...
O-O {[%clk 0:03:00.8]} 9. Re1 {[%clk 0:02:48.2]} 9... Re8 {[%clk 0:03:01]} 10.
Qd2 {[%clk 0:02:46.1]} 10... exd4 {[%clk 0:03:01]} 11. Nxd4 {[%clk 0:02:29.7]}
11... Nc5 {[%clk 0:03:00.9]} 12. Bh6 {[%clk 0:02:23.1]} 12... Nxd3 {[%clk
0:02:57.3]} 13. cxd3 {[%clk 0:02:21.1]} 13... Bxh6 {[%clk 0:02:46.6]} 14. Qxh6
{[%clk 0:02:22]} 14... Qb6 {[%clk 0:02:46.6]} 15. Nb3 {[%clk 0:02:20.1]} 15...
a5 {[%clk 0:02:46.5]} 16. Qf4 {[%clk 0:02:11.6]} 16... Qd8 {[%clk 0:02:34.5]}
17. a4 {[%clk 0:01:54.9]} 17... Kg7 {[%clk 0:02:34.1]} 18. d4 {[%clk 0:01:53.8]}
18... Qb6 {[%clk 0:02:33.2]} 19. Nd2 {[%clk 0:00:28.2]} 19... Qxb2 {[%clk
0:02:29.5]} 20. Rac1 {[%clk 0:00:25.3]} 20... Qb4 {[%clk 0:02:24.2]} 21. Nf3
{[%clk 0:00:17.6]} 21... Bd7 {[%clk 0:02:18.8]} 22. Re3 {[%clk 0:00:15.8]} 22...
Nh5 {[%clk 0:02:09.4]} 23. Qh4 {[%clk 0:00:14.5]} 23... Rab8 {[%clk 0:01:57.1]}
24. g4 {[%clk 0:00:09.4]} 24... Nf4 {[%clk 0:01:49.9]} 25. Qg3 {[%clk
0:00:09.4]} 25... Ne6 {[%clk 0:01:38.8]} 26. Rb1 {[%clk 0:00:09.6]} 26... Qa3
{[%clk 0:01:33.7]} 27. Ne2 {[%clk 0:00:04.8]} 27... Qxa4 {[%clk 0:01:14.6]} 28.
Qxd6 {[%clk 0:00:03.3]} 28... Red8 {[%clk 0:01:14.9]} 29. Qe5+ {[%clk
0:00:03.4]} 29... f6 {[%clk 0:01:10.9]} 30. Qg3 {[%clk 0:00:03.9]} 30... Be8
{[%clk 0:01:06.2]} 31. g5 {[%clk 0:00:03.9]} 31... fxg5 {[%clk 0:00:57.7]} 32.
Nxg5 {[%clk 0:00:04.8]} 32... Nxg5 {[%clk 0:00:57.2]} 33. Qxg5 {[%clk
0:00:05.5]} 33... Bf7 {[%clk 0:00:54.6]} 34. Rxb7 {[%clk 0:00:04.4]} 34... Rxb7
{[%clk 0:00:50.4]} 35. Qxd8 {[%clk 0:00:04.5]} 35... Qd1+ {[%clk 0:00:42.9]} 36.
Kg2 {[%clk 0:00:04.7]} 36... a4 {[%clk 0:00:43.2]} 37. Qd6 {[%clk 0:00:04.6]}
37... Rb2 {[%clk 0:00:22.8]} 38. Nf4 {[%clk 0:00:03.8]} 38... Qd2 {[%clk
0:00:15.4]} 39. Re2 {[%clk 0:00:02.8]} 39... Qb4 {[%clk 0:00:12.5]} 40. Rxb2
{[%clk 0:00:03.7]} 40... Qxd6 {[%clk 0:00:11.9]} 41. e5 {[%clk 0:00:03.8]} 41...
Qxd4 {[%clk 0:00:12]} 42. e6 {[%clk 0:00:01.7]} 42... Qxb2 {[%clk 0:00:11.5]}
43. exf7 {[%clk 0:00:02.1]} 43... Kxf7 {[%clk 0:00:12.4]} 0-1

[Event "Late-Titled-Tuesday-Blitz-July-09-2024"]
[Site "Chess.com"]
[Date "2024.07.09"]
[Round "8"]
[White "Fjal"]
[Black "Hattori-Hanzo78"]
[Result "0-1"]
[WhiteElo "2398"]
[BlackElo "2596"]
[TimeControl "180+1"]
[EndTime "15:28:06 PDT"]
[Termination "Hattori-Hanzo78 won by checkmate"]

1. Nf3 {[%clk 0:03:00.9]} 1... Nf6 {[%clk 0:02:59.4]} 2. g3 {[%clk 0:02:57.7]}
2... b6 {[%clk 0:02:59.9]} 3. Bg2 {[%clk 0:02:58.2]} 3... Bb7 {[%clk 0:03:00.8]}
4. O-O {[%clk 0:02:58.7]} 4... g6 {[%clk 0:03:01.3]} 5. d4 {[%clk 0:02:59]} 5...
Bg7 {[%clk 0:03:01.8]} 6. c4 {[%clk 0:02:59.4]} 6... O-O {[%clk 0:03:02.5]} 7.
Nc3 {[%clk 0:02:59.8]} 7... Ne4 {[%clk 0:03:03.1]} 8. Qc2 {[%clk 0:02:56.6]}
8... Nxc3 {[%clk 0:03:02]} 9. bxc3 {[%clk 0:02:47.8]} 9... c5 {[%clk 0:02:55.3]}
10. Rb1 {[%clk 0:02:44.7]} 10... d6 {[%clk 0:02:49.5]} 11. Rd1 {[%clk
0:02:41.4]} 11... Nd7 {[%clk 0:02:49.8]} 12. Be3 {[%clk 0:02:33.4]} 12... Rc8
{[%clk 0:02:48.9]} 13. Qa4 {[%clk 0:02:32.6]} 13... Bc6 {[%clk 0:02:41.4]} 14.
Qa6 {[%clk 0:02:25.4]} 14... Qc7 {[%clk 0:02:35.6]} 15. Bg5 {[%clk 0:01:48]}
15... Rfe8 {[%clk 0:02:31.9]} 16. a4 {[%clk 0:01:38.6]} 16... Bb7 {[%clk
0:02:18.3]} 17. Qb5 {[%clk 0:01:38.2]} 17... a6 {[%clk 0:02:18.9]} 18. Qb2
{[%clk 0:01:23.1]} 18... cxd4 {[%clk 0:02:17.2]} 19. cxd4 {[%clk 0:01:23.3]}
19... Qxc4 {[%clk 0:02:17.1]} 20. Ne5 {[%clk 0:00:35.9]} 20... dxe5 {[%clk
0:01:50.1]} 21. Bxb7 {[%clk 0:00:35.1]} 21... Rb8 {[%clk 0:01:49.1]} 22. Rdc1
{[%clk 0:00:34.5]} 22... Qxd4 {[%clk 0:01:33.1]} 23. Bc6 {[%clk 0:00:34.6]}
23... Qd6 {[%clk 0:01:19.1]} 24. Qd2 {[%clk 0:00:16.1]} 24... Qxd2 {[%clk
0:01:14.3]} 25. Bxd2 {[%clk 0:00:17]} 25... Red8 {[%clk 0:01:14.1]} 26. Be3
{[%clk 0:00:15.4]} 26... f6 {[%clk 0:00:54.4]} 27. Bxd7 {[%clk 0:00:14.5]} 27...
Rxd7 {[%clk 0:00:54.7]} 28. Rxb6 {[%clk 0:00:14.5]} 28... Rxb6 {[%clk
0:00:44.9]} 29. Bxb6 {[%clk 0:00:14.3]} 29... Rd6 {[%clk 0:00:31]} 30. Rc8+
{[%clk 0:00:14.7]} 30... Kf7 {[%clk 0:00:30.9]} 31. a5 {[%clk 0:00:15.2]} 31...
f5 {[%clk 0:00:26.9]} 32. Ra8 {[%clk 0:00:15.3]} 32... e4 {[%clk 0:00:27.3]} 33.
e3 {[%clk 0:00:15.1]} 33... Bc3 {[%clk 0:00:25.3]} 34. Rxa6 {[%clk 0:00:15.3]}
34... Rd1+ {[%clk 0:00:23.8]} 35. Kg2 {[%clk 0:00:15.1]} 35... Be1 {[%clk
0:00:23.7]} 36. Ra7 {[%clk 0:00:13.7]} 36... Rd2 {[%clk 0:00:24]} 37. Bc5 {[%clk
0:00:12.6]} 37... Rxf2+ {[%clk 0:00:23.7]} 38. Kh3 {[%clk 0:00:13.2]} 38... Ra2
{[%clk 0:00:23.8]} 39. a6 {[%clk 0:00:13.4]} 39... Bf2 {[%clk 0:00:17.9]} 40.
Rxe7+ {[%clk 0:00:12.8]} 40... Kf6 {[%clk 0:00:18.1]} 41. a7 {[%clk 0:00:13.1]}
41... Bg1 {[%clk 0:00:12.3]} 42. g4 {[%clk 0:00:11.7]} 42... Kg5 {[%clk
0:00:09]} 43. Kg3 {[%clk 0:00:11.5]} 43... Bxh2+ {[%clk 0:00:08.6]} 44. Kh3
{[%clk 0:00:11.4]} 44... fxg4# {[%clk 0:00:09.1]} 0-1

[Event "Late-Titled-Tuesday-Blitz-July-09-2024"]
[Site "Chess.com"]
[Date "2024.07.09"]
[Round "8"]
[White "Nicolik"]
[Black "Seochesspie"]
[Result "0-1"]
[WhiteElo "2728"]
[BlackElo "2941"]
[TimeControl "180+1"]
[EndTime "15:28:07 PDT"]
[Termination "Seochesspie won on time"]

1. d4 {[%clk 0:03:00.9]} 1... Nf6 {[%clk 0:02:59.6]} 2. c4 {[%clk 0:03:00.9]}
2... e6 {[%clk 0:03:00]} 3. Nc3 {[%clk 0:03:01]} 3... Bb4 {[%clk 0:02:58.9]} 4.
e3 {[%clk 0:03:01.5]} 4... O-O {[%clk 0:02:58.4]} 5. Bd2 {[%clk 0:03:01.6]} 5...
d5 {[%clk 0:02:55.1]} 6. a3 {[%clk 0:02:59.9]} 6... Be7 {[%clk 0:02:54.6]} 7.
Nf3 {[%clk 0:02:59]} 7... b6 {[%clk 0:02:50.7]} 8. Rc1 {[%clk 0:02:57.3]} 8...
Bb7 {[%clk 0:02:50.5]} 9. b4 {[%clk 0:02:55.2]} 9... c6 {[%clk 0:02:41.6]} 10.
Bd3 {[%clk 0:02:54]} 10... a5 {[%clk 0:02:40.5]} 11. c5 {[%clk 0:02:52.7]} 11...
Ba6 {[%clk 0:02:36.9]} 12. Bxa6 {[%clk 0:02:48.1]} 12... Rxa6 {[%clk 0:02:30.6]}
13. O-O {[%clk 0:02:44.3]} 13... axb4 {[%clk 0:02:05.6]} 14. axb4 {[%clk
0:02:45.2]} 14... b5 {[%clk 0:02:05.9]} 15. Ne5 {[%clk 0:02:38.7]} 15... Nfd7
{[%clk 0:02:05.2]} 16. Nd3 {[%clk 0:02:38.7]} 16... Qc7 {[%clk 0:02:03.5]} 17.
e4 {[%clk 0:02:38.3]} 17... dxe4 {[%clk 0:01:45.6]} 18. Nxe4 {[%clk 0:02:38]}
18... Nf6 {[%clk 0:01:45.1]} 19. Bf4 {[%clk 0:02:37.9]} 19... Qa7 {[%clk
0:01:45.6]} 20. Nd6 {[%clk 0:02:35.9]} 20... Nd5 {[%clk 0:01:44.2]} 21. Bg3
{[%clk 0:02:30.4]} 21... Nd7 {[%clk 0:01:44.3]} 22. Re1 {[%clk 0:02:19]} 22...
Ra8 {[%clk 0:01:41.2]} 23. h4 {[%clk 0:01:52.4]} 23... Ra3 {[%clk 0:01:37.5]}
24. h5 {[%clk 0:01:51.7]} 24... h6 {[%clk 0:01:37.1]} 25. Nf4 {[%clk 0:01:43]}
25... Nxb4 {[%clk 0:01:25.3]} 26. Nxf7 {[%clk 0:01:35.2]} 26... Kxf7 {[%clk
0:01:22]} 27. Qg4 {[%clk 0:01:28.1]} 27... Nf8 {[%clk 0:01:05.5]} 28. Nxe6
{[%clk 0:01:02.4]} 28... Bf6 {[%clk 0:01:05.5]} 29. Bd6 {[%clk 0:01:00.4]} 29...
Qd7 {[%clk 0:00:30.6]} 30. Bxf8 {[%clk 0:00:59.7]} 30... Kg8 {[%clk 0:00:30.8]}
31. Bd6 {[%clk 0:00:50.2]} 31... Nd3 {[%clk 0:00:27]} 32. d5 {[%clk 0:00:35.9]}
32... Nxe1 {[%clk 0:00:24.7]} 33. Rxe1 {[%clk 0:00:32.8]} 33... Ra1 {[%clk
0:00:21.1]} 34. Rxa1 {[%clk 0:00:31.3]} 34... Rxa1+ {[%clk 0:00:21.8]} 35. Kh2
{[%clk 0:00:31.8]} 35... cxd5 {[%clk 0:00:20.4]} 36. Qf5 {[%clk 0:00:06.4]}
36... Re1 {[%clk 0:00:18.5]} 37. Nd4 {[%clk 0:00:04.7]} 37... Qxf5 {[%clk
0:00:18.2]} 38. Nxf5 {[%clk 0:00:05.6]} 38... Rc1 {[%clk 0:00:16.2]} 39. Ne3
{[%clk 0:00:05.7]} 39... d4 {[%clk 0:00:14.9]} 40. Nd5 {[%clk 0:00:06.1]} 40...
d3 {[%clk 0:00:14]} 41. Bf4 {[%clk 0:00:04.6]} 41... Rxc5 {[%clk 0:00:13.2]} 42.
Nb4 {[%clk 0:00:05.3]} 42... Rc3 {[%clk 0:00:11.5]} 43. Nd5 {[%clk 0:00:05.1]}
43... Rb3 {[%clk 0:00:11.5]} 44. Kg3 {[%clk 0:00:05]} 44... Bg5 {[%clk
0:00:10.7]} 0-1

[Event "Late-Titled-Tuesday-Blitz-July-09-2024"]
[Site "Chess.com"]
[Date "2024.07.09"]
[Round "8"]
[White "ArchibaldCerveza29"]
[Black "JAN2404"]
[Result "0-1"]
[WhiteElo "2391"]
[BlackElo "2123"]
[TimeControl "180+1"]
[EndTime "15:28:10 PDT"]
[Termination "JAN2404 won by resignation"]

1. e4 {[%clk 0:03:00.9]} 1... c5 {[%clk 0:02:54.3]} 2. d4 {[%clk 0:02:57.8]}
2... cxd4 {[%clk 0:02:44.4]} 3. c3 {[%clk 0:02:57]} 3... dxc3 {[%clk 0:02:44.3]}
4. Nxc3 {[%clk 0:02:57.9]} 4... e6 {[%clk 0:02:44.1]} 5. Nf3 {[%clk 0:02:57.7]}
5... Nc6 {[%clk 0:02:40.9]} 6. Bc4 {[%clk 0:02:57.8]} 6... Bb4 {[%clk
0:02:40.5]} 7. O-O {[%clk 0:02:56.1]} 7... Nge7 {[%clk 0:02:40]} 8. Bg5 {[%clk
0:02:48.2]} 8... O-O {[%clk 0:02:27.1]} 9. Rc1 {[%clk 0:02:45.8]} 9... h6 {[%clk
0:02:27.2]} 10. Bh4 {[%clk 0:02:43.4]} 10... b6 {[%clk 0:02:05.9]} 11. Qe2
{[%clk 0:02:16.4]} 11... Bb7 {[%clk 0:02:00.6]} 12. Rfd1 {[%clk 0:02:12.4]}
12... Rc8 {[%clk 0:01:48.5]} 13. Nd5 {[%clk 0:01:58.2]} 13... g5 {[%clk
0:01:14]} 14. Nf6+ {[%clk 0:01:34.6]} 14... Kg7 {[%clk 0:01:12.8]} 15. Nxg5
{[%clk 0:01:13.6]} 15... hxg5 {[%clk 0:01:08.3]} 16. Bxg5 {[%clk 0:01:14.5]}
16... Ne5 {[%clk 0:01:00.6]} 17. Bb5 {[%clk 0:00:41.1]} 17... Rxc1 {[%clk
0:00:56.9]} 18. Rxc1 {[%clk 0:00:38.6]} 18... Bc5 {[%clk 0:00:37.2]} 19. b4
{[%clk 0:00:23.7]} 19... Bxb4 {[%clk 0:00:20.4]} 20. f4 {[%clk 0:00:23.5]} 20...
Bc5+ {[%clk 0:00:20.3]} 21. Kh1 {[%clk 0:00:23.4]} 21... N5g6 {[%clk 0:00:20.5]}
22. e5 {[%clk 0:00:21.7]} 22... Qa8 {[%clk 0:00:17.7]} 23. Ne4 {[%clk
0:00:17.3]} 23... Bxe4 {[%clk 0:00:16.7]} 24. Bf6+ {[%clk 0:00:17.2]} 24... Kg8
{[%clk 0:00:11.5]} 25. h4 {[%clk 0:00:17.6]} 25... Nf5 {[%clk 0:00:10.2]} 26. h5
{[%clk 0:00:17.8]} 26... Ng3+ {[%clk 0:00:10.5]} 27. Kh2 {[%clk 0:00:17.4]}
27... Nxe2 {[%clk 0:00:10.9]} 28. hxg6 {[%clk 0:00:18.3]} 28... Nxc1 {[%clk
0:00:10.2]} 29. g7 {[%clk 0:00:17.8]} 29... Rc8 {[%clk 0:00:08.7]} 30. Bxd7
{[%clk 0:00:17.5]} 30... Bg1+ {[%clk 0:00:08.5]} 31. Kxg1 {[%clk 0:00:17.1]}
31... Ne2+ {[%clk 0:00:07]} 32. Kf2 {[%clk 0:00:16.9]} 32... Nxf4 {[%clk
0:00:06.1]} 33. Bxc8 {[%clk 0:00:16.8]} 33... Qxc8 {[%clk 0:00:05.9]} 34. Ke3
{[%clk 0:00:17.6]} 34... Qc3+ {[%clk 0:00:02.7]} 35. Kxe4 {[%clk 0:00:18]} 35...
Nd5 {[%clk 0:00:02]} 36. g4 {[%clk 0:00:17.8]} 36... Nxf6+ {[%clk 0:00:02.5]}
37. exf6 {[%clk 0:00:17.9]} 37... Qc4+ {[%clk 0:00:02.5]} 38. Kf3 {[%clk
0:00:17.9]} 38... Qxa2 {[%clk 0:00:02.6]} 39. g5 {[%clk 0:00:18.7]} 39... Qd5+
{[%clk 0:00:02.8]} 40. Kf4 {[%clk 0:00:19.6]} 40... b5 {[%clk 0:00:03.3]} 41. g6
{[%clk 0:00:20.2]} 41... b4 {[%clk 0:00:04.2]} 42. gxf7+ {[%clk 0:00:21.1]}
42... Kxf7 {[%clk 0:00:04.1]} 43. g8=Q+ {[%clk 0:00:21.4]} 43... Kxg8 {[%clk
0:00:04.3]} 44. Ke3 {[%clk 0:00:22.3]} 44... Kf7 {[%clk 0:00:05]} 45. Kf4 {[%clk
0:00:22.4]} 45... Kxf6 {[%clk 0:00:05.9]} 46. Kg4 {[%clk 0:00:23.1]} 46... b3
{[%clk 0:00:06.8]} 47. Kf4 {[%clk 0:00:23.7]} 47... b2 {[%clk 0:00:07.5]} 48.
Ke3 {[%clk 0:00:24.6]} 48... b1=Q {[%clk 0:00:07.7]} 0-1

[Event "Late-Titled-Tuesday-Blitz-July-09-2024"]
[Site "Chess.com"]
[Date "2024.07.09"]
[Round "8"]
[White "Maluco_do_Natal_00"]
[Black "luggevoila"]
[Result "0-1"]
[WhiteElo "2007"]
[BlackElo "2336"]
[TimeControl "180+1"]
[EndTime "15:28:15 PDT"]
[Termination "luggevoila won by resignation"]

1. e4 {[%clk 0:02:49]} 1... e5 {[%clk 0:03:00]} 2. Nf3 {[%clk 0:02:46]} 2... Nc6
{[%clk 0:03:00.6]} 3. Bb5 {[%clk 0:02:46.1]} 3... Nge7 {[%clk 0:03:01.1]} 4. d4
{[%clk 0:02:45.4]} 4... exd4 {[%clk 0:03:00.5]} 5. Nxd4 {[%clk 0:02:45.5]} 5...
Nxd4 {[%clk 0:03:01.4]} 6. Qxd4 {[%clk 0:02:44.7]} 6... Nc6 {[%clk 0:03:02]} 7.
Qd1 {[%clk 0:02:37.8]} 7... Bc5 {[%clk 0:02:57.9]} 8. Nc3 {[%clk 0:02:35.2]}
8... O-O {[%clk 0:02:56.8]} 9. O-O {[%clk 0:02:32.8]} 9... a6 {[%clk 0:02:56.7]}
10. Bc4 {[%clk 0:02:20.7]} 10... d6 {[%clk 0:02:50.2]} 11. a3 {[%clk 0:02:18]}
11... Ne5 {[%clk 0:02:42.9]} 12. Be2 {[%clk 0:02:14.9]} 12... Qh4 {[%clk
0:02:19.2]} 13. b4 {[%clk 0:01:15.7]} 13... Ba7 {[%clk 0:02:06.7]} 14. b5 {[%clk
0:00:59.6]} 14... f5 {[%clk 0:01:32]} 15. bxa6 {[%clk 0:00:42.6]} 15... Rb8
{[%clk 0:01:02.3]} 16. Rb1 {[%clk 0:00:26.5]} 16... fxe4 {[%clk 0:00:59.7]} 17.
Qd5+ {[%clk 0:00:24.7]} 17... Kh8 {[%clk 0:00:57.7]} 18. Qxe4 {[%clk 0:00:24.6]}
18... Qxe4 {[%clk 0:00:17.9]} 19. Nxe4 {[%clk 0:00:25.5]} 19... Bf5 {[%clk
0:00:18.1]} 20. Ng3 {[%clk 0:00:24.3]} 20... Bxc2 {[%clk 0:00:17.2]} 21. Rxb7
{[%clk 0:00:24.3]} 21... Rxb7 {[%clk 0:00:15.1]} 22. axb7 {[%clk 0:00:25.2]}
22... Nd3 {[%clk 0:00:12.9]} 23. Bxd3 {[%clk 0:00:21.3]} 23... Bxd3 {[%clk
0:00:13.8]} 24. Rd1 {[%clk 0:00:09.8]} 24... Bxf2+ {[%clk 0:00:12.8]} 25. Kh1
{[%clk 0:00:10.1]} 25... Ba6 {[%clk 0:00:12.4]} 26. Ne4 {[%clk 0:00:08.7]} 26...
Bb6 {[%clk 0:00:11.3]} 27. h3 {[%clk 0:00:07.2]} 27... Bxb7 {[%clk 0:00:11.5]}
28. a4 {[%clk 0:00:07]} 28... Bxe4 {[%clk 0:00:11.1]} 29. Bg5 {[%clk 0:00:06.9]}
29... h6 {[%clk 0:00:10.5]} 30. Be7 {[%clk 0:00:06.8]} 30... Rf7 {[%clk
0:00:10]} 31. Bd8 {[%clk 0:00:06.4]} 31... Bc2 {[%clk 0:00:10.4]} 32. Rc1 {[%clk
0:00:06.3]} 32... Bxa4 {[%clk 0:00:10.3]} 33. Bh4 {[%clk 0:00:05.2]} 33... Bd7
{[%clk 0:00:10.1]} 34. Bg3 {[%clk 0:00:05]} 34... Bb5 {[%clk 0:00:09.5]} 35. Kh2
{[%clk 0:00:04.7]} 35... Kh7 {[%clk 0:00:07.8]} 36. Rb1 {[%clk 0:00:03.4]} 36...
Bd7 {[%clk 0:00:08]} 37. Bxd6 {[%clk 0:00:03.2]} 37... cxd6 {[%clk 0:00:08.9]}
38. Rxb6 {[%clk 0:00:03.3]} 38... Rf6 {[%clk 0:00:09.4]} 39. Rb7 {[%clk
0:00:03.1]} 39... Bf5 {[%clk 0:00:09.9]} 40. Re7 {[%clk 0:00:03.2]} 40... d5
{[%clk 0:00:09.8]} 41. Re5 {[%clk 0:00:03.1]} 41... Be4 {[%clk 0:00:10.7]} 42.
Kg3 {[%clk 0:00:02.8]} 42... Rf5 {[%clk 0:00:11]} 43. Re7 {[%clk 0:00:02.7]}
43... Rg5+ {[%clk 0:00:11.3]} 44. Kf2 {[%clk 0:00:02.7]} 44... Rxg2+ {[%clk
0:00:11.8]} 45. Kf1 {[%clk 0:00:02.8]} 45... Rg3 {[%clk 0:00:12.2]} 46. h4
{[%clk 0:00:02.7]} 46... Rh3 {[%clk 0:00:12.4]} 0-1